[Event "Titled Tuesday Blitz May 11 2021"]
[White "Tristan, Leonardo"]
[Black "Jobava, Baadur"]
[WhiteFideId "113816"]
[BlackFideId "13601520"]
[WhiteElo "2404"]
[BlackElo "2748"]
[Result "0-1"]
[Round "04"]
[TimeControl "180+1"]
[Date "2021.05.11"]
[WhiteClock "0:00:04"]
[BlackClock "0:00:43"]

1. d4 {[%clk 0:03:00]}  c6 {[%clk 0:03:00]} 2. Bf4 {[%clk 0:02:58]}  d5 {[%clk 0:03:01]} 3. e3 {[%clk 0:02:58]}  Nf6 {[%clk 0:03:01]} 4. Nf3 {[%clk 0:02:58]}  Bf5 {[%clk 0:03:01]} 5. c4 {[%clk 0:02:57]}  e6 {[%clk 0:03:02]} 6. Nc3 {[%clk 0:02:57]}  Be7 {[%clk 0:03:01]} 7. Qb3 {[%clk 0:02:57]}  Qc8 {[%clk 0:03:00]} 8. Rc1 {[%clk 0:02:55]}  O-O {[%clk 0:03:00]} 9. cxd5 {[%clk 0:02:55]}  Nxd5 {[%clk 0:02:55]} 10. Bg3 {[%clk 0:02:55]}  Bg6 {[%clk 0:02:54]} 11. Be2 {[%clk 0:02:50]}  Nd7 {[%clk 0:02:53]} 12. O-O {[%clk 0:02:50]}  Re8 {[%clk 0:02:50]} 13. Nb5 {[%clk 0:02:49]}  N7f6 {[%clk 0:02:43]} 14. Nd6 {[%clk 0:02:44]}  Bxd6 {[%clk 0:02:43]} 15. Bxd6 {[%clk 0:02:45]}  Ne4 {[%clk 0:02:44]} 16. Be5 {[%clk 0:02:37]}  a5 {[%clk 0:02:33]} 17. a3 {[%clk 0:02:13]}  a4 {[%clk 0:02:29]} 18. Qd1 {[%clk 0:02:14]}  h6 {[%clk 0:02:25]} 19. h3 {[%clk 0:02:13]}  Qd8 {[%clk 0:02:24]} 20. Nd2 {[%clk 0:02:04]}  Nxd2 {[%clk 0:02:06]} 21. Qxd2 {[%clk 0:02:03]}  Qb6 {[%clk 0:02:03]} 22. Rfd1 {[%clk 0:01:44]}  Red8 {[%clk 0:02:00]} 23. Bf1 {[%clk 0:01:43]}  Rd7 {[%clk 0:01:57]} 24. f3 {[%clk 0:01:34]}  Qd8 {[%clk 0:01:48]} 25. Qf2 {[%clk 0:01:31]}  Kh7 {[%clk 0:01:41]} 26. e4 {[%clk 0:01:18]}  Ne7 {[%clk 0:01:39]} 27. Bf4 {[%clk 0:01:18]}  f6 {[%clk 0:01:08]} 28. Be2 {[%clk 0:01:17]}  Qe8 {[%clk 0:01:03]} 29. h4 {[%clk 0:01:06]}  Rad8 {[%clk 0:01:01]} 30. g4 {[%clk 0:01:06]}  h5 {[%clk 0:01:00]} 31. g5 {[%clk 0:01:00]}  Qf7 {[%clk 0:01:00]} 32. Be3 {[%clk 0:00:56]}  f5 {[%clk 0:00:54]} 33. Qg2 {[%clk 0:00:49]}  e5 {[%clk 0:00:46]} 34. dxe5 {[%clk 0:00:42]}  Qb3 {[%clk 0:00:46]} 35. Rd3 {[%clk 0:00:07]}  Rxd3 {[%clk 0:00:45]} 36. Bxd3 {[%clk 0:00:08]}  Rxd3 {[%clk 0:00:43]} 37. Bc5 {[%clk 0:00:09]}  Rxf3 {[%clk 0:00:43]} 38. Rc2 {[%clk 0:00:04]}  Rg3 {[%clk 0:00:43]} 0-1


[Site "https://www.chess.com"]

[Event "Titled Tuesday Blitz May 11 2021"]
[White "Tsydypov, Zhamsaran"]
[Black "Dardha, Daniel"]
[WhiteFideId "4108566"]
[BlackFideId "240990"]
[WhiteElo "2645"]
[BlackElo "2489"]
[Result "1-0"]
[Round "04"]
[TimeControl "180+1"]
[Date "2021.05.11"]
[WhiteClock "0:00:13"]
[BlackClock "0:00:01"]

1. e4 {[%clk 0:03:00]}  c5 {[%clk 0:02:59]} 2. Nf3 {[%clk 0:02:59]}  Nc6 {[%clk 0:02:59]} 3. Bb5 {[%clk 0:02:58]}  e5 {[%clk 0:02:59]} 4. O-O {[%clk 0:02:57]}  Bd6 {[%clk 0:02:59]} 5. c3 {[%clk 0:02:55]}  a6 {[%clk 0:02:59]} 6. Ba4 {[%clk 0:02:51]}  b5 {[%clk 0:02:59]} 7. Bc2 {[%clk 0:02:52]}  Nge7 {[%clk 0:02:56]} 8. d4 {[%clk 0:02:48]}  cxd4 {[%clk 0:02:57]} 9. cxd4 {[%clk 0:02:48]}  exd4 {[%clk 0:02:58]} 10. Nxd4 {[%clk 0:02:48]}  Nxd4 {[%clk 0:02:58]} 11. Qxd4 {[%clk 0:02:47]}  Qc7 {[%clk 0:02:59]} 12. Bb3 {[%clk 0:02:30]}  Bxh2+ {[%clk 0:02:57]} 13. Kh1 {[%clk 0:02:30]}  O-O {[%clk 0:02:20]} 14. f4 {[%clk 0:02:28]}  Bg3 {[%clk 0:02:18]} 15. Qe3 {[%clk 0:02:16]}  Bh4 {[%clk 0:02:03]} 16. Qh3 {[%clk 0:02:10]}  Bf2 {[%clk 0:02:01]} 17. f5 {[%clk 0:02:00]}  d5 {[%clk 0:01:39]} 18. Bg5 {[%clk 0:01:57]}  Bd4 {[%clk 0:01:31]} 19. Nd2 {[%clk 0:01:54]}  dxe4 {[%clk 0:00:46]} 20. Nxe4 {[%clk 0:01:50]}  Qe5 {[%clk 0:00:46]} 21. Ng3 {[%clk 0:01:44]}  Ng6 {[%clk 0:00:23]} 22. Rae1 {[%clk 0:01:41]}  Qc7 {[%clk 0:00:22]} 23. Nh5 {[%clk 0:01:07]}  Kh8 {[%clk 0:00:12]} 24. Qd3 {[%clk 0:01:01]}  Qc5 {[%clk 0:00:11]} 25. Rd1 {[%clk 0:00:39]}  Bxb2 {[%clk 0:00:08]} 26. Qd5 {[%clk 0:00:37]}  Qxd5 {[%clk 0:00:04]} 27. Bxd5 {[%clk 0:00:37]}  Ra7 {[%clk 0:00:01]} 28. fxg6 {[%clk 0:00:36]}  hxg6 {[%clk 0:00:02]} 29. Nf4 {[%clk 0:00:35]}  Bf6 {[%clk 0:00:02]} 30. Bxf6 {[%clk 0:00:15]}  gxf6 {[%clk 0:00:03]} 31. g3 {[%clk 0:00:15]}  Kg7 {[%clk 0:00:04]} 32. Kg2 {[%clk 0:00:15]}  Rc7 {[%clk 0:00:04]} 33. Rd2 {[%clk 0:00:15]}  Bg4 {[%clk 0:00:04]} 34. Rff2 {[%clk 0:00:14]}  Rfc8 {[%clk 0:00:04]} 35. Bb3 {[%clk 0:00:14]}  Re7 {[%clk 0:00:04]} 36. Rd6 {[%clk 0:00:13]}  Rc3 {[%clk 0:00:02]} 37. Nd5 {[%clk 0:00:13]}  Re5 {[%clk 0:00:01]} 38. Nxc3 {[%clk 0:00:13]} 1-0


[Site "https://www.chess.com"]

[Event "Titled Tuesday Blitz May 11 2021"]
[White "Wagner, Dennis"]
[Black "Martinez Alcantara, Jose Eduardo"]
[WhiteFideId "24650684"]
[BlackFideId "3805662"]
[WhiteElo "2355"]
[BlackElo "2690"]
[Result "0-1"]
[Round "04"]
[TimeControl "180+1"]
[Date "2021.05.11"]
[WhiteClock "0:00:04"]
[BlackClock "0:00:14"]

1. e4 {[%clk 0:03:00]}  e5 {[%clk 0:02:58]} 2. Nf3 {[%clk 0:03:01]}  Nc6 {[%clk 0:02:58]} 3. Bb5 {[%clk 0:03:02]}  a6 {[%clk 0:02:58]} 4. Ba4 {[%clk 0:03:02]}  Nf6 {[%clk 0:02:58]} 5. d3 {[%clk 0:03:01]}  d6 {[%clk 0:02:56]} 6. c3 {[%clk 0:03:00]}  Bd7 {[%clk 0:02:56]} 7. O-O {[%clk 0:03:00]}  g6 {[%clk 0:02:57]} 8. h3 {[%clk 0:02:59]}  Bg7 {[%clk 0:02:58]} 9. Nbd2 {[%clk 0:03:00]}  O-O {[%clk 0:02:58]} 10. Re1 {[%clk 0:03:00]}  b5 {[%clk 0:02:51]} 11. Bc2 {[%clk 0:02:59]}  Re8 {[%clk 0:02:50]} 12. a4 {[%clk 0:03:00]}  h6 {[%clk 0:02:42]} 13. b4 {[%clk 0:02:59]}  Qb8 {[%clk 0:02:34]} 14. Nb3 {[%clk 0:02:59]}  bxa4 {[%clk 0:02:25]} 15. Rxa4 {[%clk 0:02:49]}  Nd4 {[%clk 0:02:08]} 16. Nbxd4 {[%clk 0:02:49]}  exd4 {[%clk 0:02:08]} 17. Nxd4 {[%clk 0:02:49]}  c5 {[%clk 0:02:06]} 18. bxc5 {[%clk 0:02:29]}  dxc5 {[%clk 0:02:06]} 19. Nf3 {[%clk 0:02:29]}  Bxa4 {[%clk 0:02:05]} 20. Bxa4 {[%clk 0:02:30]}  Rd8 {[%clk 0:02:00]} 21. e5 {[%clk 0:02:30]}  Nd5 {[%clk 0:01:59]} 22. Bd2 {[%clk 0:02:26]}  Qc8 {[%clk 0:01:44]} 23. d4 {[%clk 0:02:02]}  cxd4 {[%clk 0:01:37]} 24. cxd4 {[%clk 0:02:03]}  Rb8 {[%clk 0:01:26]} 25. h4 {[%clk 0:01:41]}  Rb2 {[%clk 0:01:05]} 26. Ba5 {[%clk 0:01:24]}  Qg4 {[%clk 0:00:55]} 27. Nd2 {[%clk 0:00:31]}  Qxd4 {[%clk 0:00:43]} 28. Re4 {[%clk 0:00:16]}  Qd3 {[%clk 0:00:43]} 29. Bxd8 {[%clk 0:00:11]}  Rxd2 {[%clk 0:00:37]} 30. Qf3 {[%clk 0:00:11]}  Nc3 {[%clk 0:00:34]} 31. Re3 {[%clk 0:00:08]}  Qb1+ {[%clk 0:00:29]} 32. Kh2 {[%clk 0:00:08]}  Nxa4 {[%clk 0:00:26]} 33. Qa8 {[%clk 0:00:05]}  Kh7 {[%clk 0:00:22]} 34. Bf6 {[%clk 0:00:05]}  Qf5 {[%clk 0:00:11]} 35. Rf3 {[%clk 0:00:04]}  Qe6 {[%clk 0:00:10]} 36. Bxg7 {[%clk 0:00:04]}  Kxg7 {[%clk 0:00:11]} 37. Qb8 {[%clk 0:00:03]}  Rd5 {[%clk 0:00:11]} 38. Qb4 {[%clk 0:00:02]}  Qxe5+ {[%clk 0:00:11]} 39. g3 {[%clk 0:00:02]}  Nc5 {[%clk 0:00:11]} 40. Re3 {[%clk 0:00:02]}  Qd4 {[%clk 0:00:12]} 41. Qb6 {[%clk 0:00:02]}  Ne6 {[%clk 0:00:11]} 42. Qxa6 {[%clk 0:00:02]}  Rf5 {[%clk 0:00:12]} 43. Kg1 {[%clk 0:00:01]}  Qf6 {[%clk 0:00:13]} 44. Kg2 {[%clk 0:00:02]}  h5 {[%clk 0:00:13]} 45. Kh3 {[%clk 0:00:02]}  Nf4+ {[%clk 0:00:13]} 46. gxf4 {[%clk 0:00:02]}  Qxa6 {[%clk 0:00:14]} 47. Rg3 {[%clk 0:00:03]}  Rxf4 {[%clk 0:00:14]} 48. Kh2 {[%clk 0:00:04]}  Rxf2+ {[%clk 0:00:14]} 0-1


[Site "https://www.chess.com"]

[Event "Titled Tuesday Blitz May 11 2021"]
[White "Anton Guijarro, David"]
[Black "Oparin, Grigoriy"]
[WhiteFideId "2285525"]
[BlackFideId "24125890"]
[WhiteElo "2629"]
[BlackElo "2628"]
[Result "0-1"]
[Round "05"]
[TimeControl "180+1"]
[Date "2021.05.11"]
[WhiteClock "0:00:12"]
[BlackClock "0:00:10"]

1. c4 {[%clk 0:03:00]}  Nf6 {[%clk 0:02:59]} 2. Nf3 {[%clk 0:03:00]}  e6 {[%clk 0:03:00]} 3. g3 {[%clk 0:03:00]}  d5 {[%clk 0:03:00]} 4. Bg2 {[%clk 0:03:00]}  dxc4 {[%clk 0:03:00]} 5. Qa4+ {[%clk 0:03:00]}  c6 {[%clk 0:03:00]} 6. Qxc4 {[%clk 0:03:00]}  b5 {[%clk 0:03:01]} 7. Qc2 {[%clk 0:02:59]}  Bb7 {[%clk 0:03:01]} 8. O-O {[%clk 0:02:57]}  Nbd7 {[%clk 0:03:01]} 9. a4 {[%clk 0:02:54]}  a6 {[%clk 0:03:01]} 10. d3 {[%clk 0:02:53]}  Be7 {[%clk 0:02:58]} 11. e4 {[%clk 0:02:48]}  O-O {[%clk 0:02:58]} 12. Rd1 {[%clk 0:02:46]}  Rc8 {[%clk 0:02:57]} 13. Nc3 {[%clk 0:02:45]}  b4 {[%clk 0:02:53]} 14. Nb1 {[%clk 0:02:40]}  c5 {[%clk 0:02:54]} 15. Nbd2 {[%clk 0:02:38]}  Nb8 {[%clk 0:02:53]} 16. Nc4 {[%clk 0:02:21]}  Nc6 {[%clk 0:02:54]} 17. Qe2 {[%clk 0:02:16]}  a5 {[%clk 0:02:48]} 18. b3 {[%clk 0:02:12]}  Ba6 {[%clk 0:02:45]} 19. Bb2 {[%clk 0:02:11]}  Nd4 {[%clk 0:02:44]} 20. Nxd4 {[%clk 0:02:10]}  cxd4 {[%clk 0:02:45]} 21. e5 {[%clk 0:02:04]}  Nd5 {[%clk 0:02:44]} 22. Bxd4 {[%clk 0:01:51]}  Nc3 {[%clk 0:02:44]} 23. Bxc3 {[%clk 0:01:51]}  bxc3 {[%clk 0:02:45]} 24. Rac1 {[%clk 0:01:50]}  Bb4 {[%clk 0:02:44]} 25. Qe3 {[%clk 0:01:46]}  Qc7 {[%clk 0:02:41]} 26. Be4 {[%clk 0:01:38]}  Rfd8 {[%clk 0:02:40]} 27. Kg2 {[%clk 0:01:38]}  g6 {[%clk 0:02:38]} 28. f4 {[%clk 0:01:26]}  Bc5 {[%clk 0:02:35]} 29. Qf3 {[%clk 0:01:24]}  Bd4 {[%clk 0:02:34]} 30. Rc2 {[%clk 0:00:58]}  Rb8 {[%clk 0:02:35]} 31. Rb1 {[%clk 0:00:59]}  Qc5 {[%clk 0:02:33]} 32. Nd6 {[%clk 0:00:56]}  Qa3 {[%clk 0:02:27]} 33. Nb7 {[%clk 0:00:35]}  Bxb7 {[%clk 0:01:17]} 34. Bxb7 {[%clk 0:00:36]}  h5 {[%clk 0:01:18]} 35. Qc6 {[%clk 0:00:27]}  Qe7 {[%clk 0:01:06]} 36. Ba6 {[%clk 0:00:26]}  Rb6 {[%clk 0:01:06]} 37. Qc4 {[%clk 0:00:24]}  Qa7 {[%clk 0:01:04]} 38. Bb5 {[%clk 0:00:23]}  Qb7+ {[%clk 0:01:04]} 39. Kh3 {[%clk 0:00:23]}  Kg7 {[%clk 0:00:52]} 40. Rf1 {[%clk 0:00:19]}  h4 {[%clk 0:00:48]} 41. g4 {[%clk 0:00:19]}  Qe7 {[%clk 0:00:40]} 42. f5 {[%clk 0:00:17]}  Qg5 {[%clk 0:00:38]} 43. Re2 {[%clk 0:00:16]}  Kh6 {[%clk 0:00:23]} 44. fxe6 {[%clk 0:00:14]}  Rxe6 {[%clk 0:00:24]} 45. Qc7 {[%clk 0:00:12]}  Qe7 {[%clk 0:00:18]} 46. Qxe7 {[%clk 0:00:12]}  Rxe7 {[%clk 0:00:19]} 47. Bc4 {[%clk 0:00:13]}  Kg7 {[%clk 0:00:19]} 48. Re4 {[%clk 0:00:11]}  Rdd7 {[%clk 0:00:17]} 49. Rc1 {[%clk 0:00:09]}  Rxe5 {[%clk 0:00:17]} 50. Rxe5 {[%clk 0:00:08]}  Bxe5 {[%clk 0:00:18]} 51. Kg2 {[%clk 0:00:09]}  Bd4 {[%clk 0:00:18]} 52. Kf3 {[%clk 0:00:09]}  Re7 {[%clk 0:00:18]} 53. h3 {[%clk 0:00:07]}  Re3+ {[%clk 0:00:18]} 54. Kg2 {[%clk 0:00:08]}  Re2+ {[%clk 0:00:14]} 55. Kf3 {[%clk 0:00:08]}  Re3+ {[%clk 0:00:13]} 56. Kf4 {[%clk 0:00:09]}  f6 {[%clk 0:00:12]} 57. g5 {[%clk 0:00:09]}  f5 {[%clk 0:00:12]} 58. b4 {[%clk 0:00:09]}  axb4 {[%clk 0:00:12]} 59. a5 {[%clk 0:00:10]}  Rxh3 {[%clk 0:00:12]} 60. a6 {[%clk 0:00:09]}  Rg3 {[%clk 0:00:08]} 61. Re1 {[%clk 0:00:09]}  Rg4+ {[%clk 0:00:08]} 62. Kf3 {[%clk 0:00:09]}  Rxg5 {[%clk 0:00:09]} 63. Re7+ {[%clk 0:00:09]}  Kh6 {[%clk 0:00:10]} 64. a7 {[%clk 0:00:10]}  Bxa7 {[%clk 0:00:10]} 65. Rxa7 {[%clk 0:00:11]}  Rg1 {[%clk 0:00:10]} 66. Ra2 {[%clk 0:00:11]}  h3 {[%clk 0:00:10]} 67. Rh2 {[%clk 0:00:11]}  Kg5 {[%clk 0:00:10]} 68. Rxh3 {[%clk 0:00:12]}  c2 {[%clk 0:00:10]} 0-1


[Site "https://www.chess.com"]

[Event "Titled Tuesday Blitz May 11 2021"]
[White "Goltsev, Dmitry"]
[Black "Tsydypov, Zhamsaran"]
[WhiteFideId "24176710"]
[BlackFideId "4108566"]
[WhiteElo "2366"]
[BlackElo "2645"]
[Result "0-1"]
[Round "05"]
[TimeControl "180+1"]
[Date "2021.05.11"]
[WhiteClock "0:00:04"]
[BlackClock "0:01:14"]

1. e4 {[%clk 0:02:58]}  c5 {[%clk 0:02:55]} 2. Nf3 {[%clk 0:02:57]}  d6 {[%clk 0:02:55]} 3. d4 {[%clk 0:02:58]}  cxd4 {[%clk 0:02:55]} 4. Nxd4 {[%clk 0:02:58]}  Nf6 {[%clk 0:02:56]} 5. Nc3 {[%clk 0:02:59]}  a6 {[%clk 0:02:56]} 6. Be2 {[%clk 0:02:58]}  e6 {[%clk 0:02:56]} 7. O-O {[%clk 0:02:58]}  Be7 {[%clk 0:02:56]} 8. Be3 {[%clk 0:02:58]}  O-O {[%clk 0:02:57]} 9. Qd2 {[%clk 0:02:58]}  b5 {[%clk 0:02:56]} 10. Bf3 {[%clk 0:02:57]}  b4 {[%clk 0:02:53]} 11. Nce2 {[%clk 0:02:44]}  e5 {[%clk 0:02:50]} 12. Nb3 {[%clk 0:02:38]}  a5 {[%clk 0:02:49]} 13. Ng3 {[%clk 0:02:38]}  Nc6 {[%clk 0:02:39]} 14. Rfd1 {[%clk 0:02:32]}  a4 {[%clk 0:02:36]} 15. Nc1 {[%clk 0:02:31]}  Be6 {[%clk 0:02:36]} 16. a3 {[%clk 0:02:21]}  bxa3 {[%clk 0:02:32]} 17. Rxa3 {[%clk 0:02:01]}  Qb8 {[%clk 0:02:30]} 18. c3 {[%clk 0:01:54]}  Rd8 {[%clk 0:02:26]} 19. Nf5 {[%clk 0:01:41]}  Bxf5 {[%clk 0:02:14]} 20. exf5 {[%clk 0:01:42]}  d5 {[%clk 0:02:15]} 21. Ra2 {[%clk 0:01:38]}  Qc8 {[%clk 0:02:01]} 22. g4 {[%clk 0:01:20]}  e4 {[%clk 0:01:36]} 23. Be2 {[%clk 0:01:19]}  h5 {[%clk 0:01:36]} 24. g5 {[%clk 0:01:00]}  Ng4 {[%clk 0:01:35]} 25. Bxg4 {[%clk 0:00:51]}  hxg4 {[%clk 0:01:35]} 26. Bb6 {[%clk 0:00:50]}  Ne5 {[%clk 0:01:27]} 27. Qf4 {[%clk 0:00:45]}  Nf3+ {[%clk 0:01:24]} 28. Kh1 {[%clk 0:00:41]}  Bxg5 {[%clk 0:01:24]} 29. Qxg4 {[%clk 0:00:41]}  Rd6 {[%clk 0:01:24]} 30. Be3 {[%clk 0:00:25]}  Rh6 {[%clk 0:01:24]} 31. h3 {[%clk 0:00:22]}  Rh4 {[%clk 0:01:24]} 32. Qg3 {[%clk 0:00:18]}  Qxf5 {[%clk 0:01:23]} 33. Kg2 {[%clk 0:00:17]}  Bxe3 {[%clk 0:01:22]} 34. fxe3 {[%clk 0:00:18]}  Rh5 {[%clk 0:01:22]} 35. Qf4 {[%clk 0:00:09]}  Qxh3+ {[%clk 0:01:17]} 36. Kf2 {[%clk 0:00:09]}  Rf5 {[%clk 0:01:16]} 37. Qc7 {[%clk 0:00:06]}  Ne5+ {[%clk 0:01:15]} 38. Ke1 {[%clk 0:00:05]}  Qxe3+ {[%clk 0:01:14]} 39. Ne2 {[%clk 0:00:05]}  Nf3+ {[%clk 0:01:14]} 40. Kf1 {[%clk 0:00:04]}  Nd4+ {[%clk 0:01:14]} 0-1


[Site "https://www.chess.com"]

[Event "Titled Tuesday Blitz May 11 2021"]
[White "Jobava, Baadur"]
[Black "Vogel, Roven"]
[WhiteFideId "13601520"]
[BlackFideId "12908088"]
[WhiteElo "2748"]
[BlackElo "2516"]
[Result "1-0"]
[Round "05"]
[TimeControl "180+1"]
[Date "2021.05.11"]
[WhiteClock "0:00:16"]
[BlackClock "0:00:10"]

1. d4 {[%clk 0:03:00]}  d5 {[%clk 0:02:57]} 2. Nc3 {[%clk 0:03:01]}  Nf6 {[%clk 0:02:57]} 3. Bf4 {[%clk 0:03:01]}  c5 {[%clk 0:02:56]} 4. e3 {[%clk 0:03:01]}  cxd4 {[%clk 0:02:56]} 5. exd4 {[%clk 0:03:02]}  a6 {[%clk 0:02:56]} 6. Bd3 {[%clk 0:03:02]}  Nc6 {[%clk 0:02:54]} 7. Nge2 {[%clk 0:03:03]}  g6 {[%clk 0:02:32]} 8. f3 {[%clk 0:02:57]}  Nh5 {[%clk 0:02:27]} 9. Be3 {[%clk 0:02:56]}  e5 {[%clk 0:02:22]} 10. dxe5 {[%clk 0:02:45]}  Nxe5 {[%clk 0:02:21]} 11. O-O {[%clk 0:02:36]}  Bg7 {[%clk 0:02:20]} 12. Qd2 {[%clk 0:02:32]}  O-O {[%clk 0:02:17]} 13. Bd4 {[%clk 0:02:28]}  Nc4 {[%clk 0:02:10]} 14. Bxc4 {[%clk 0:02:21]}  dxc4 {[%clk 0:02:11]} 15. Rfd1 {[%clk 0:02:06]}  Be6 {[%clk 0:02:06]} 16. a4 {[%clk 0:02:00]}  Qh4 {[%clk 0:02:00]} 17. Bxg7 {[%clk 0:01:56]}  Nxg7 {[%clk 0:02:01]} 18. a5 {[%clk 0:01:51]}  Rfd8 {[%clk 0:01:57]} 19. Qf4 {[%clk 0:01:49]}  Qe7 {[%clk 0:01:55]} 20. Ne4 {[%clk 0:01:48]}  Bf5 {[%clk 0:01:54]} 21. N2c3 {[%clk 0:01:47]}  Bxe4 {[%clk 0:01:48]} 22. Nxe4 {[%clk 0:01:48]}  Nh5 {[%clk 0:01:39]} 23. Qe3 {[%clk 0:01:30]}  f5 {[%clk 0:01:38]} 24. Qc5 {[%clk 0:01:30]}  Kf8 {[%clk 0:01:20]} 25. Qxe7+ {[%clk 0:01:08]}  Kxe7 {[%clk 0:01:21]} 26. Nc5 {[%clk 0:01:08]}  Rac8 {[%clk 0:01:20]} 27. Nxb7 {[%clk 0:01:06]}  Rxd1+ {[%clk 0:01:20]} 28. Rxd1 {[%clk 0:01:07]}  Rb8 {[%clk 0:01:19]} 29. Nc5 {[%clk 0:01:04]}  Rxb2 {[%clk 0:01:19]} 30. Nxa6 {[%clk 0:01:01]}  Rxc2 {[%clk 0:01:19]} 31. Nb4 {[%clk 0:01:02]}  Rb2 {[%clk 0:01:13]} 32. Nc6+ {[%clk 0:01:01]}  Kf6 {[%clk 0:01:00]} 33. a6 {[%clk 0:01:02]}  c3 {[%clk 0:00:55]} 34. a7 {[%clk 0:00:27]}  Ra2 {[%clk 0:00:52]} 35. g3 {[%clk 0:00:25]}  Ke6 {[%clk 0:00:36]} 36. Rc1 {[%clk 0:00:25]}  Nf6 {[%clk 0:00:31]} 37. Rxc3 {[%clk 0:00:24]}  Nd5 {[%clk 0:00:31]} 38. Rb3 {[%clk 0:00:24]}  Kd6 {[%clk 0:00:28]} 39. Rb8 {[%clk 0:00:17]}  Nc7 {[%clk 0:00:27]} 40. Nd4 {[%clk 0:00:13]}  Rxa7 {[%clk 0:00:21]} 41. Rd8+ {[%clk 0:00:13]}  Kc5 {[%clk 0:00:20]} 42. Rd7 {[%clk 0:00:13]}  Ra1+ {[%clk 0:00:19]} 43. Kg2 {[%clk 0:00:14]}  Ra2+ {[%clk 0:00:20]} 44. Kh3 {[%clk 0:00:14]}  Nd5 {[%clk 0:00:21]} 45. Ne6+ {[%clk 0:00:14]}  Kc6 {[%clk 0:00:21]} 46. Rxh7 {[%clk 0:00:15]}  Kd6 {[%clk 0:00:20]} 47. Nf8 {[%clk 0:00:15]}  Ne7 {[%clk 0:00:19]} 48. Nxg6 {[%clk 0:00:14]}  Nxg6 {[%clk 0:00:17]} 49. Rh6 {[%clk 0:00:14]}  Rf2 {[%clk 0:00:13]} 50. Rxg6+ {[%clk 0:00:15]}  Ke7 {[%clk 0:00:13]} 51. f4 {[%clk 0:00:16]}  Kf7 {[%clk 0:00:13]} 52. Rg5 {[%clk 0:00:17]}  Kf6 {[%clk 0:00:13]} 53. Rg8 {[%clk 0:00:17]}  Kf7 {[%clk 0:00:13]} 54. Ra8 {[%clk 0:00:17]}  Kg6 {[%clk 0:00:13]} 55. Ra6+ {[%clk 0:00:17]}  Kg7 {[%clk 0:00:13]} 56. Rb6 {[%clk 0:00:16]}  Kh7 {[%clk 0:00:13]} 57. Kh4 {[%clk 0:00:16]}  Rxh2+ {[%clk 0:00:12]} 58. Kg5 {[%clk 0:00:16]}  Rh3 {[%clk 0:00:10]} 59. Rb3 {[%clk 0:00:16]} 1-0


[Site "https://www.chess.com"]

[Event "Titled Tuesday Blitz May 11 2021"]
[White "Koridze, Lile"]
[Black "dropstoneDP"]
[WhiteFideId "13612514"]
[WhiteElo "1978"]
[BlackElo "2896"]
[Result "0-1"]
[Round "05"]
[TimeControl "180+1"]
[Date "2021.05.11"]
[WhiteClock "0:00:12"]
[BlackClock "0:01:32"]

1. d4 {[%clk 0:03:00]}  Nf6 {[%clk 0:02:59]} 2. c4 {[%clk 0:02:59]}  b6 {[%clk 0:02:59]} 3. Nc3 {[%clk 0:02:57]}  Bb7 {[%clk 0:03:00]} 4. e3 {[%clk 0:02:57]}  e6 {[%clk 0:02:59]} 5. Nf3 {[%clk 0:02:56]}  Bb4 {[%clk 0:02:58]} 6. Bd3 {[%clk 0:02:55]}  O-O {[%clk 0:02:58]} 7. O-O {[%clk 0:02:55]}  c5 {[%clk 0:02:59]} 8. a3 {[%clk 0:02:37]}  Bxc3 {[%clk 0:02:57]} 9. bxc3 {[%clk 0:02:38]}  Be4 {[%clk 0:02:57]} 10. Bxe4 {[%clk 0:02:31]}  Nxe4 {[%clk 0:02:58]} 11. Qd3 {[%clk 0:02:32]}  f5 {[%clk 0:02:51]} 12. d5 {[%clk 0:02:28]}  Qf6 {[%clk 0:02:49]} 13. Bb2 {[%clk 0:02:26]}  e5 {[%clk 0:02:47]} 14. Rad1 {[%clk 0:02:24]}  d6 {[%clk 0:02:44]} 15. Nd2 {[%clk 0:02:23]}  Nxd2 {[%clk 0:02:41]} 16. Qxd2 {[%clk 0:02:22]}  Nd7 {[%clk 0:02:40]} 17. Qe2 {[%clk 0:02:17]}  Rae8 {[%clk 0:02:39]} 18. f3 {[%clk 0:02:14]}  h6 {[%clk 0:02:36]} 19. e4 {[%clk 0:02:11]}  f4 {[%clk 0:02:36]} 20. Kh1 {[%clk 0:02:10]}  g5 {[%clk 0:02:35]} 21. Ra1 {[%clk 0:02:06]}  Kf7 {[%clk 0:02:33]} 22. a4 {[%clk 0:02:07]}  a5 {[%clk 0:02:33]} 23. Ba3 {[%clk 0:02:04]}  h5 {[%clk 0:02:26]} 24. Qc2 {[%clk 0:01:56]}  Rh8 {[%clk 0:02:22]} 25. Qb3 {[%clk 0:01:54]}  g4 {[%clk 0:02:18]} 26. Qb5 {[%clk 0:01:53]}  Ke7 {[%clk 0:02:18]} 27. Kg1 {[%clk 0:01:47]}  Reg8 {[%clk 0:02:16]} 28. Qb2 {[%clk 0:01:44]}  Rg6 {[%clk 0:02:10]} 29. Kh1 {[%clk 0:01:24]}  Rhg8 {[%clk 0:02:06]} 30. Rg1 {[%clk 0:00:48]}  Qg5 {[%clk 0:01:42]} 31. Qe2 {[%clk 0:00:32]}  gxf3 {[%clk 0:01:33]} 32. Qxf3 {[%clk 0:00:31]}  Qh4 {[%clk 0:01:34]} 33. Rab1 {[%clk 0:00:17]}  Rg3 {[%clk 0:01:32]} 34. Qf2 {[%clk 0:00:17]}  R8g4 {[%clk 0:01:32]} 35. Rb2 {[%clk 0:00:12]}  Qxh2+ {[%clk 0:01:32]} 0-1


[Site "https://www.chess.com"]